bitfinex/quotes_BTCUSD_20251113
["timestamp","ask_amount","ask_price","bid_price","bid_amount"]
[1763019976852,0.88265932,103530.0,103520.0,0.02028711]
[1763019977059,0.58682996,103530.0,103520.0,0.00086723]
[1763019977301,0.2910006,103530.0,103520.0,0.02028711]
[1763019977518,0.58682996,103530.0,103520.0,0.02028711]
[1763019977732,0.58682996,103530.0,103520.0,0.00086723]
[1763019977938,0.61877844,103530.0,103520.0,0.04028711]
[1763019978148,0.52766008,103530.0,103520.0,0.02028711]
[1763019978784,0.52766008,103530.0,103520.0,0.23348649]
[1763019978992,0.56741008,103530.0,103520.0,0.23348649]
[1763019979197,0.56741008,103530.0,103520.0,0.21348649]
[1763019979443,0.52766008,103530.0,103520.0,0.23348649]
[1763019980686,0.56741008,103530.0,103520.0,0.04028711]
[1763019980897,0.56741008,103530.0,103520.0,0.02028711]
[1763019981128,0.86323944,103530.0,103520.0,0.00086723]
[1763019981560,0.59935856,103530.0,103520.0,0.00086723]
[1763019981762,0.59935856,103530.0,103520.0,0.02028711]
[1763019982204,0.59935856,103530.0,103520.0,0.00086723]
[1763019982625,0.56741008,103530.0,103520.0,0.00086723]
[1763019983245,0.52766008,103530.0,103520.0,0.04028711]
[1763019983419,0.23183072,103530.0,103520.0,0.23348649]
[1763019983768,0.52766008,103530.0,103520.0,0.25447649]
[1763019983969,0.50071008,103530.0,103520.0,0.32700649]
[1763019984181,0.0117,103530.0,103520.0,0.30700649]
[1763019984333,0.86323944,103530.0,103520.0,0.00086723]
[1763019984585,0.52766008,103530.0,103520.0,0.00086723]
[1763019984778,0.52766008,103530.0,103520.0,0.04028711]
[1763019984972,0.23183072,103530.0,103520.0,0.06127711]
[1763019985177,0.52766008,103530.0,103520.0,0.04127711]
[1763019985392,0.20488072,103530.0,103520.0,0.26393661]
[1763019985566,0.50071008,103530.0,103520.0,0.32700649]
[1763019985760,0.20488072,103530.0,103520.0,0.32700649]
[1763019986345,0.20488072,103530.0,103520.0,0.30700649]
[1763019986585,0.0117,103530.0,103520.0,0.32700649]
[1763019986787,0.49858142,103540.0,103530.0,0.2126006]
[1763019986946,0.49858142,103540.0,103530.0,0.04040988]
[1763019987369,0.52553142,103540.0,103530.0,0.04040988]
[1763019987786,0.19318072,103530.0,103520.0,0.02112957]
[1763019987981,0.49814008,103530.0,103520.0,0.04054945]
[1763019988191,0.52509008,103530.0,103520.0,0.04054945]
[1763019988840,0.52509008,103530.0,103520.0,0.23374883]
[1763019989039,0.52509008,103530.0,103520.0,0.04054945]
[1763019989240,0.52509008,103530.0,103520.0,0.06054945]
[1763019989688,0.52509008,103530.0,103520.0,0.04054945]
[1763019990248,0.52509008,103530.0,103520.0,0.00013957]
[1763019990491,0.52509008,103530.0,103520.0,0.01955945]
[1763019991865,0.20275206,103540.0,103530.0,0.19318072]
[1763019992068,0.20275206,103540.0,103530.0,0.06600988]
[1763019992277,0.20275206,103540.0,103530.0,0.10510494]
[1763019992504,0.20275206,103540.0,103530.0,0.29828566]
[1763019992708,0.49858142,103540.0,103530.0,0.10510494]
[1763019992904,0.49858142,103540.0,103530.0,0.29828566]
[1763019993113,0.49958142,103540.0,103530.0,0.10510494]
[1763019993599,0.50058142,103540.0,103530.0,0.12510494]
[1763019993806,0.50058142,103540.0,103530.0,0.08568506]
[1763019994005,0.50058142,103540.0,103530.0,0.12510494]
[1763019994417,0.50058142,103540.0,103530.0,0.06649494]
[1763019994590,0.50058142,103540.0,103530.0,0.10510494]
[1763019995430,0.50058142,103540.0,103530.0,0.12510494]
[1763019995636,0.50058142,103540.0,103530.0,0.10510494]
[1763019995841,0.50058142,103540.0,103530.0,0.12510494]
[1763019996287,0.50058142,103540.0,103530.0,0.10510494]
[1763019996494,0.50058142,103540.0,103530.0,0.12510494]
[1763019996907,0.50058142,103540.0,103530.0,0.10510494]
[1763019997107,0.50058142,103540.0,103530.0,0.29828566]
[1763019997333,0.50058142,103540.0,103530.0,0.08568506]
[1763019997741,0.50058142,103540.0,103530.0,0.10510494]
[1763019998357,0.50058142,103540.0,103530.0,0.12510494]
[1763019998580,0.50058142,103540.0,103530.0,0.10510494]
[1763019998765,0.50058142,103540.0,103530.0,0.06649494]
[1763019999467,0.50058142,103540.0,103530.0,0.08568506]
[1763019999813,0.50058142,103540.0,103530.0,0.00048506]
[1763019999814,1.15709014,103540.0,103530.0,0.00048506]
[1763020000003,1.48009014,103540.0,103530.0,0.00048506]
[1763020000208,1.55250939,103540.0,103530.0,0.00048506]
[1763020001718,1.5824162,103540.0,103530.0,0.00048506]
[1763020002112,1.55250939,103540.0,103530.0,0.00048506]
[1763020002720,1.55250939,103540.0,103530.0,1e-08]
[1763020003133,1.21326129,103540.0,103530.0,1e-08]
[1763020003900,1.50909065,103540.0,103530.0,1e-08]
[1763020004514,1.50909065,103540.0,103530.0,0.01941989]
[1763020004785,1.50909065,103540.0,103530.0,1e-08]
[1763020004938,1.50909065,103540.0,103530.0,0.01941989]
[1763020005140,1.50909065,103540.0,103530.0,1e-08]
[1763020005489,1.55250939,103540.0,103530.0,1e-08]
[1763020006512,1.65092974,103540.0,103530.0,1e-08]
[1763020006714,1.5824162,103540.0,103530.0,1e-08]
[1763020007681,1.5804162,103540.0,103530.0,1e-08]
[1763020009075,0.98875748,103540.0,103530.0,1e-08]
[1763020009589,0.95885067,103540.0,103530.0,1e-08]
[1763020009930,0.98875748,103540.0,103530.0,1e-08]
[1763020010140,0.95885067,103540.0,103530.0,1e-08]
[1763020011944,0.98875748,103540.0,103530.0,1e-08]
[1763020012150,0.76144166,103540.0,103530.0,1e-08]
[1763020012376,0.66302131,103540.0,103530.0,1e-08]
[1763020012991,1.4776488,103530.0,103520.0,1e-08]
[1763020013455,1.4776488,103530.0,103500.0,0.01951658]
[1763020013665,0.01877,103480.0,103470.0,0.2629066]
[1763020013837,0.0062029,103480.0,103470.0,0.3281566]
[1763020014066,0.0062029,103480.0,103460.0,0.0004]
[1763020014067,1.16407568,103480.0,103460.0,0.0004]
[1763020014269,0.86824632,103480.0,103460.0,0.05896]
[1763020014527,0.54928734,103480.0,103470.0,0.02]
[1763020014755,0.22790468,103490.0,103480.0,0.19326665]
[1763020014756,0.19325538,103490.0,103480.0,0.19326665]
[1763020014974,0.00013958,103490.0,103480.0,0.27851665]
[1763020015190,0.00013958,103490.0,103480.0,0.25851665]
[1763020015409,0.00013958,103490.0,103480.0,0.27851665]
[1763020015620,0.00013958,103490.0,103480.0,0.25851665]
[1763020015830,0.00013958,103490.0,103480.0,0.29851665]
[1763020016717,0.64038295,103490.0,103470.0,0.001]
[1763020016940,0.00013958,103490.0,103480.0,0.08525]
[1763020017156,0.00013958,103490.0,103480.0,0.27952406]
[1763020017362,0.19339496,103490.0,103480.0,0.08725]
[1763020017571,0.19339496,103490.0,103480.0,0.30052406]
[1763020017821,0.19339496,103490.0,103480.0,0.28052406]
[1763020018255,0.19339496,103490.0,103480.0,0.30052406]
[1763020018464,0.00013958,103490.0,103480.0,0.30052406]
[1763020019340,0.19339496,103490.0,103480.0,0.30052406]
[1763020019553,0.00013958,103490.0,103480.0,0.28052406]
[1763020019766,0.19339496,103490.0,103480.0,0.30173741]
[1763020020988,0.00013958,103490.0,103480.0,0.28173741]
[1763020021214,0.00013958,103490.0,103480.0,0.55395789]
[1763020021732,0.00013958,103490.0,103480.0,1.12917837]
[1763020021970,0.00013958,103490.0,103480.0,0.62473741]
[1763020022185,0.00013958,103490.0,103480.0,1.12917837]
[1763020022418,4.759e-05,103490.0,103480.0,1.17259711]
[1763020022661,4.759e-05,103490.0,103480.0,1.20159664]
[1763020022909,4.759e-05,103490.0,103480.0,1.20059664]
[1763020023099,4.759e-05,103490.0,103480.0,1.19959664]
[1763020023392,4.759e-05,103490.0,103480.0,1.20159664]
[1763020023568,4.759e-05,103490.0,103480.0,0.69915568]
[1763020023820,4.759e-05,103490.0,103480.0,1.20359664]
[1763020024048,4.759e-05,103490.0,103480.0,1.16359664]
[1763020024291,0.0062,103540.0,103530.0,0.19318072]
[1763020024558,0.0062,103540.0,103530.0,0.25651072]
[1763020024559,0.0001402,103540.0,103530.0,0.25651072]
[1763020024770,0.19330226,103540.0,103530.0,0.29496072]
[1763020025366,0.19330226,103540.0,103530.0,0.31496072]
[1763020025367,0.0001402,103540.0,103530.0,0.31496072]
[1763020025571,0.0001402,103540.0,103530.0,0.27496072]
[1763020025780,0.0001402,103540.0,103530.0,0.5671812]
[1763020026362,0.0001402,103540.0,103530.0,0.31496072]
[1763020026721,0.0001402,103540.0,103530.0,0.31596072]
[1763020027713,0.0001402,103540.0,103530.0,0.29596072]
[1763020028041,0.0001402,103540.0,103530.0,0.31596072]
[1763020028848,0.19330226,103540.0,103530.0,0.29596072]
[1763020029094,0.19330226,103540.0,103530.0,0.31596072]
[1763020029247,0.19330226,103540.0,103530.0,0.10278]
[1763020029657,0.19330226,103540.0,103530.0,0.12278]
[1763020030125,0.19330226,103540.0,103530.0,0.10278]
[1763020030472,0.19330226,103540.0,103530.0,0.12278]
[1763020030691,0.19330226,103540.0,103530.0,0.29596072]
[1763020030896,0.19330226,103540.0,103530.0,0.12278]
[1763020031298,0.19330226,103540.0,103530.0,0.31596072]
[1763020031534,0.19330226,103540.0,103530.0,0.10278]
[1763020031980,0.19330226,103540.0,103530.0,0.29596072]
[1763020032174,0.19330226,103540.0,103530.0,0.12278]
[1763020032380,0.72066322,103540.0,103530.0,0.021]
[1763020032660,0.72066322,103540.0,103530.0,0.001]
[1763020032661,0.74358322,103540.0,103530.0,0.001]
[1763020033736,0.74458322,103540.0,103530.0,0.02]
[1763020034210,0.19318072,103530.0,103520.0,0.00024257]
[1763020034450,0.21722226,103540.0,103530.0,0.03993]
[1763020034655,0.44652274,103540.0,103530.0,0.03993]
[1763020034864,0.44652274,103540.0,103530.0,0.23311072]
[1763020034865,0.46904274,103540.0,103530.0,0.23311072]
[1763020035212,0.46904274,103540.0,103530.0,0.25311072]
[1763020035414,0.46804274,103540.0,103530.0,0.03993]
[1763020035858,0.19318072,103530.0,103520.0,0.05967257]
[1763020036033,0.19318072,103530.0,103520.0,0.21344195]
[1763020036235,0.19318072,103530.0,103520.0,0.08578257]
[1763020036623,0.19318072,103530.0,103520.0,0.27898195]
[1763020037044,0.19318072,103530.0,103520.0,0.08578257]
[1763020037243,0.19318072,103530.0,103520.0,0.10578257]
[1763020038354,0.19318072,103530.0,103520.0,0.10678257]
[1763020038555,0.19318072,103530.0,103520.0,0.27998195]
[1763020038755,0.19318072,103530.0,103520.0,0.29998195]
[1763020038960,0.19318072,103530.0,103520.0,0.08678257]
[1763020039211,0.19318072,103530.0,103520.0,0.10678257]
[1763020039424,0.19318072,103530.0,103520.0,0.27998195]
[1763020039831,0.19318072,103530.0,103520.0,0.29998195]
[1763020040716,0.19318072,103530.0,103520.0,0.08678257]
[1763020041323,0.19318072,103530.0,103520.0,0.10678257]
[1763020041640,0.19318072,103530.0,103520.0,0.08678257]
[1763020041847,0.19318072,103530.0,103520.0,0.10678257]
[1763020042067,0.19318072,103530.0,103520.0,0.29998195]
[1763020042262,0.19318072,103530.0,103520.0,0.10678257]
[1763020042477,0.19318072,103530.0,103520.0,0.27998195]
[1763020042906,0.4454012,103530.0,103520.0,0.06678257]
[1763020043145,0.4454012,103530.0,103520.0,0.08678257]
[1763020043534,0.4454012,103530.0,103520.0,0.10678257]
[1763020043743,0.44512274,103540.0,103520.0,0.29998195]
[1763020043946,0.19318072,103530.0,103520.0,0.29998195]
[1763020044683,0.44512274,103540.0,103520.0,0.29998195]
[1763020044878,0.44512274,103540.0,103530.0,0.04]
[1763020045339,0.27691726,103550.0,103540.0,0.19316206]
[1763020045627,0.24838716,103550.0,103540.0,0.24027206]
[1763020045845,0.24838716,103550.0,103540.0,0.26027206]
[1763020046083,0.24838716,103550.0,103540.0,0.29870206]
[1763020046751,0.24938716,103550.0,103540.0,0.29870206]
[1763020047187,0.25038716,103550.0,103540.0,0.29870206]
[1763020047641,0.25038716,103550.0,103540.0,0.26027206]
[1763020047830,0.24938716,103550.0,103540.0,0.29870206]
[1763020049467,0.24396716,103550.0,103540.0,0.29870206]
[1763020049923,0.00146716,103550.0,103540.0,0.29870206]
[1763020050379,0.00046716,103550.0,103540.0,0.55092254]
[1763020050985,0.00046716,103550.0,103540.0,0.74206622]
[1763020051211,0.00046716,103550.0,103540.0,0.74306622]
[1763020052559,0.00046716,103550.0,103540.0,1.06606622]
[1763020053357,0.00046716,103550.0,103540.0,0.58270206]
[1763020053564,0.00046716,103550.0,103540.0,1.04606622]
[1763020053801,0.00046716,103550.0,103540.0,1.06606622]
[1763020054656,0.00046716,103550.0,103540.0,1.04606622]
[1763020054861,0.00046716,103550.0,103540.0,0.87460796]
[1763020056385,0.00046716,103550.0,103540.0,0.89434796]
[1763020056584,0.00046716,103550.0,103540.0,0.85434796]
[1763020056786,0.00046716,103550.0,103540.0,0.89434796]
[1763020057429,1.1171211,103550.0,103540.0,0.001]
[1763020058104,1.07370236,103550.0,103540.0,0.001]
[1763020058313,1.07370236,103550.0,103540.0,1e-08]
[1763020058540,0.19318072,103530.0,103520.0,0.02024257]
[1763020058776,0.46639662,103530.0,103520.0,0.02024257]
[1763020059533,0.46639662,103530.0,103520.0,0.00024257]
[1763020059768,0.46639662,103530.0,103520.0,0.02024257]
[1763020060330,0.46639662,103530.0,103520.0,0.00024257]
[1763020060765,0.21449072,103530.0,103520.0,0.02024257]
[1763020060940,0.46639662,103530.0,103520.0,0.02024257]
[1763020062473,0.46639491,103540.0,103520.0,0.08711257]
[1763020062474,0.44508491,103540.0,103520.0,0.08711257]
[1763020062679,0.53692773,103550.0,103530.0,0.23999065]
[1763020062680,0.21392773,103550.0,103530.0,0.23999065]
[1763020062878,0.20427056,103550.0,103540.0,0.04707]
[1763020063079,0.01112716,103550.0,103540.0,0.08687]
[1763020063294,0.00046716,103550.0,103540.0,0.28003206]
[1763020063491,0.00046716,103550.0,103540.0,0.30003206]
[1763020064295,0.19361056,103550.0,103540.0,0.30003206]
[1763020064649,0.19361056,103550.0,103540.0,0.28003206]
[1763020064778,0.19461056,103550.0,103540.0,0.28003206]
[1763020064974,0.19461056,103550.0,103540.0,0.30003206]
[1763020065173,0.19561056,103550.0,103540.0,0.30003206]
[1763020065379,0.60828109,103550.0,103540.0,0.02]
[1763020065603,0.19318072,103530.0,103520.0,0.02024257]
[1763020065806,0.46639662,103530.0,103520.0,0.00024257]
[1763020066013,0.46639662,103530.0,103520.0,0.02024257]
[1763020067038,0.46639662,103530.0,103520.0,0.04024257]
[1763020067376,0.46639662,103530.0,103520.0,0.02124257]
[1763020067582,0.46639662,103530.0,103520.0,0.02224257]
[1763020067790,0.46639662,103530.0,103520.0,0.04224257]
[1763020067930,0.46639662,103530.0,103520.0,0.02224257]
[1763020068381,0.46639662,103530.0,103520.0,0.04124257]
[1763020068583,0.46639662,103530.0,103520.0,0.04024257]
[1763020069350,0.46639662,103530.0,103520.0,0.02024257]
[1763020069709,0.19316206,103540.0,103520.0,0.24051195]
[1763020069912,0.19316206,103540.0,103530.0,0.04681]
[1763020070116,0.19316206,103540.0,103530.0,0.10661]
[1763020070898,0.19316206,103540.0,103530.0,0.29979072]
[1763020071104,0.19416206,103540.0,103530.0,0.31979072]
[1763020071479,0.19416206,103540.0,103530.0,0.29979072]
[1763020071678,0.001,103540.0,103530.0,0.29979072]
[1763020072030,0.002,103540.0,103530.0,0.31979072]
[1763020072299,0.002,103540.0,103530.0,0.57169662]
[1763020072545,0.002,103540.0,103530.0,0.31979072]
[1763020072721,0.001,103540.0,103530.0,0.89469662]
[1763020073099,0.001,103540.0,103530.0,1.01061662]
[1763020073301,0.00046716,103550.0,103540.0,0.19316206]
[1763020073503,0.00046716,103550.0,103540.0,0.30003206]
[1763020073879,0.00046716,103550.0,103540.0,0.55193796]
[1763020074075,0.00046716,103550.0,103540.0,0.30003206]
[1763020074913,0.19361056,103550.0,103540.0,0.28003206]
[1763020075295,0.19361056,103550.0,103540.0,0.30003206]
[1763020076389,0.19361056,103550.0,103540.0,0.10687]
[1763020076793,0.19361056,103550.0,103540.0,0.28003206]
[1763020076944,0.19361056,103550.0,103540.0,0.30003206]
[1763020077326,0.19316206,103540.0,103530.0,0.01974]
[1763020077608,0.44506796,103540.0,103530.0,0.03974]
[1763020077802,0.44506796,103540.0,103530.0,0.10661]
[1763020078026,0.19316206,103540.0,103530.0,0.08661]
[1763020078307,0.19316206,103540.0,103530.0,0.10661]
[1763020078509,0.19316206,103540.0,103530.0,0.10861]
[1763020079301,0.19316206,103540.0,103530.0,0.12861]
[1763020079535,0.19316206,103540.0,103530.0,0.10861]
[1763020079723,0.19316206,103540.0,103530.0,0.12761]
[1763020080344,0.19316206,103540.0,103530.0,0.12661]
[1763020080680,0.19361056,103550.0,103530.0,0.70221051]
[1763020080855,0.19361056,103550.0,103540.0,0.29478206]
[1763020081073,0.19361056,103550.0,103540.0,0.27478206]
[1763020081406,0.00046716,103550.0,103540.0,0.29478206]
[1763020081809,0.00046716,103550.0,103540.0,0.71720185]
[1763020082271,0.00046716,103550.0,103540.0,0.29478206]
[1763020082679,0.00046716,103550.0,103540.0,0.61778206]
[1763020084993,0.19361056,103550.0,103540.0,0.61778206]
[1763020085215,0.00046716,103550.0,103540.0,0.61778206]
[1763020085412,0.19361056,103550.0,103540.0,0.61778206]
[1763020085613,0.00046716,103550.0,103540.0,0.61778206]
[1763020085785,0.19361056,103550.0,103540.0,0.61778206]
[1763020086214,0.00046716,103550.0,103540.0,0.61778206]
[1763020089778,0.00046716,103550.0,103540.0,0.59778206]
[1763020089978,0.00046716,103550.0,103540.0,0.61778206]
[1763020090179,0.19361056,103550.0,103540.0,0.61778206]
[1763020090382,0.00046716,103550.0,103540.0,0.61778206]
[1763020093736,0.00046716,103550.0,103540.0,1.00020185]
[1763020093737,0.00015707,103550.0,103540.0,1.00020185]
[1763020093955,0.00015707,103550.0,103540.0,1.08362059]
[1763020094908,0.00015707,103550.0,103540.0,1.08662059]
[1763020095730,0.00015707,103550.0,103540.0,1.08962059]
[1763020096301,0.00015707,103550.0,103540.0,1.09962058]
[1763020096708,0.00015707,103550.0,103540.0,1.05962058]
[1763020096920,0.00015707,103550.0,103540.0,1.09962058]
[1763020099862,0.00015707,103550.0,103540.0,0.67720079]
[1763020100074,0.00015707,103550.0,103540.0,1.09962058]
[1763020101458,0.00015707,103550.0,103540.0,1.11732058]
[1763020101820,5.061e-05,103550.0,103540.0,1.11732058]
[1763020104028,5.061e-05,103550.0,103540.0,1.07732058]
[1763020104240,5.061e-05,103550.0,103540.0,1.11732058]
[1763020104452,5.061e-05,103550.0,103540.0,3.11732058]
[1763020105179,5.061e-05,103550.0,103540.0,3.51732058]
[1763020105785,5.061e-05,103550.0,103540.0,3.52732057]
[1763020106055,1.061e-05,103550.0,103540.0,3.52732057]
[1763020106447,0.19306953,103590.0,103580.0,0.23308746]
[1763020106683,0.19320962,103590.0,103580.0,0.27388746]
[1763020106864,0.19320891,103590.0,103580.0,0.31110746]
[1763020107094,0.00014009,103590.0,103580.0,0.31110746]
[1763020107510,0.00014009,103590.0,103580.0,0.38698746]
[1763020107719,0.19420891,103590.0,103580.0,0.42698746]
[1763020107893,0.00214009,103590.0,103580.0,0.40698746]
[1763020108097,0.00214009,103590.0,103580.0,0.38698746]
[1763020108274,0.00214009,103590.0,103580.0,0.42698746]
[1763020108689,0.00114009,103590.0,103580.0,0.40698746]
[1763020108890,0.19420891,103590.0,103580.0,0.42698746]
[1763020109224,0.19320891,103590.0,103580.0,0.42698746]
[1763020109643,0.6476687,103590.0,103580.0,0.04]
[1763020109876,0.1931434,103550.0,103540.0,0.03784]
[1763020110078,0.01602,103550.0,103540.0,0.06138]
[1763020110281,0.42241979,103550.0,103540.0,0.30907206]
[1763020110413,0.1931434,103550.0,103540.0,0.09591]
[1763020111056,0.1931434,103550.0,103540.0,0.09791]
[1763020111878,0.1931434,103550.0,103540.0,0.31107206]
[1763020112076,0.1931434,103550.0,103540.0,0.11791]
[1763020112253,0.1931434,103550.0,103540.0,0.09791]
[1763020112616,0.1931434,103550.0,103540.0,0.31307206]
[1763020115510,0.1931434,103550.0,103540.0,0.29307206]
[1763020115713,0.1931434,103550.0,103540.0,0.09991]
[1763020116363,0.1931434,103550.0,103540.0,0.11991]
[1763020117316,0.1931434,103550.0,103540.0,0.09991]
[1763020117528,0.61556319,103550.0,103540.0,0.06538]
[1763020117733,0.61556319,103550.0,103540.0,0.08538]
[1763020118120,0.59358467,103550.0,103540.0,0.11991]
[1763020118321,0.59358467,103550.0,103540.0,0.09991]
[1763020118764,0.59358467,103550.0,103540.0,0.11991]
[1763020118968,0.59358467,103550.0,103540.0,0.09991]
[1763020119763,0.59358467,103550.0,103540.0,0.11991]
[1763020120398,0.59358467,103550.0,103540.0,0.09991]
[1763020120619,0.59358467,103550.0,103540.0,0.06538]
[1763020120831,0.17116488,103550.0,103540.0,0.04538]
[1763020121033,0.59358467,103550.0,103540.0,0.09991]
[1763020121511,0.59358467,103550.0,103540.0,0.09797782]
[1763020121685,0.59358467,103550.0,103540.0,0.11797782]
[1763020121892,0.59358467,103550.0,103540.0,0.04344782]
[1763020122100,0.59358467,103550.0,103540.0,0.06344782]
[1763020122691,0.59358467,103550.0,103540.0,0.08344782]
[1763020123101,0.59358467,103550.0,103540.0,0.06344782]
[1763020124588,0.61154467,103550.0,103540.0,0.03990782]
[1763020125222,0.62950467,103550.0,103540.0,0.024]
[1763020125891,0.62950467,103550.0,103540.0,0.022]
[1763020126334,0.62950467,103550.0,103540.0,0.002]
[1763020126567,0.62950467,103550.0,103540.0,0.022]
[1763020126777,0.62950467,103550.0,103540.0,0.02]
[1763020127190,0.63150467,103550.0,103540.0,0.02]
[1763020128114,0.63150467,103550.0,103540.0,0.04]
[1763020128333,0.63150467,103550.0,103540.0,0.02]
[1763020128549,0.63150467,103550.0,103540.0,0.04]
[1763020129395,0.63150467,103550.0,103540.0,0.02]
[1763020129814,0.1951434,103550.0,103540.0,0.07807]
[1763020130230,0.61756319,103550.0,103540.0,0.07807]
[1763020130431,0.61756319,103550.0,103540.0,0.05807]
[1763020130602,0.1941434,103550.0,103540.0,0.07807]
[1763020130805,0.1941434,103550.0,103540.0,0.27123206]
[1763020130983,0.63156454,103560.0,103540.0,0.25123206]
[1763020131187,0.43848647,103560.0,103550.0,0.2309834]
[1763020131402,0.63161122,103560.0,103550.0,0.2890534]
[1763020131802,0.01606668,103560.0,103550.0,0.2890534]
[1763020132001,0.01606668,103560.0,103550.0,0.3090534]
[1763020132732,4.668e-05,103560.0,103550.0,0.3090534]
[1763020133290,0.19317143,103560.0,103550.0,0.3090534]
[1763020133519,0.19417143,103560.0,103550.0,0.09591]
[1763020133736,0.61759122,103560.0,103550.0,0.2890534]
[1763020133912,0.61759122,103560.0,103550.0,0.3090534]
[1763020134150,0.61759122,103560.0,103550.0,0.08138]
[1763020134353,0.63555122,103560.0,103550.0,0.01784]
[1763020134532,0.1931434,103550.0,103540.0,0.03784]
[1763020134706,0.2021234,103550.0,103540.0,0.05784]
[1763020134906,0.2021234,103550.0,103540.0,0.25454206]
[1763020135147,0.00898,103550.0,103540.0,0.26907206]
[1763020135291,0.61759122,103560.0,103550.0,0.02]
[1763020135697,0.61759122,103560.0,103550.0,0.04]
[1763020135898,0.61759122,103560.0,103550.0,0.02]
[1763020136128,0.61659122,103560.0,103550.0,0.02]
[1763020136478,0.61659122,103560.0,103550.0,0.2366834]
[1763020136479,0.61559122,103560.0,103550.0,0.2366834]
[1763020136704,4.668e-05,103560.0,103550.0,0.2712134]
[1763020136902,0.00104668,103560.0,103550.0,0.2912134]
[1763020137729,0.00204668,103560.0,103550.0,0.2912134]
[1763020138305,0.19517143,103560.0,103550.0,0.2912134]
[1763020138648,0.00204668,103560.0,103550.0,0.2712134]
[1763020138851,0.00204668,103560.0,103550.0,0.2912134]
[1763020140055,0.19517143,103560.0,103550.0,0.2912134]
[1763020140444,0.61759122,103560.0,103550.0,0.06354]
[1763020140622,0.61759122,103560.0,103550.0,0.2566834]
[1763020140847,0.61759122,103560.0,103550.0,0.04354]
[1763020141012,0.44712404,103560.0,103550.0,0.06354]
[1763020141213,0.44712404,103560.0,103550.0,0.2366834]
[1763020141511,0.19024667,103550.0,103540.0,0.23100206]
[1763020141745,0.19752667,103550.0,103540.0,0.25100206]
[1763020141998,0.00728,103550.0,103540.0,0.30952206]
[1763020142199,0.45237601,103550.0,103540.0,0.25373206]
[1763020142399,0.47392601,103550.0,103540.0,0.23100206]
[1763020142550,0.47392601,103550.0,103540.0,0.03784]
[1763020142756,0.49547601,103550.0,103540.0,0.02]
[1763020142959,0.19316206,103540.0,103530.0,0.02]
[1763020143140,0.46666467,103540.0,103530.0,0.04]
[1763020143494,0.48821467,103540.0,103530.0,0.02]
[1763020143693,0.48821467,103540.0,103530.0,0.04]
[1763020144007,0.48821467,103540.0,103530.0,0.02]
[1763020144199,0.48821467,103540.0,103530.0,0.041]
[1763020144618,0.19318072,103530.0,103520.0,0.01808257]
[1763020144826,0.19788072,103530.0,103520.0,0.23128195]
[1763020144997,0.41971178,103530.0,103520.0,0.23128195]
[1763020145203,0.41971178,103530.0,103520.0,0.25128195]
[1763020145366,0.41971178,103530.0,103520.0,0.27510195]
[1763020146137,0.41971178,103530.0,103520.0,0.27610195]
[1763020146345,0.41971178,103530.0,103520.0,0.27710195]
[1763020148802,0.44066178,103530.0,103520.0,0.27710195]
[1763020148980,0.44066178,103530.0,103520.0,0.25328195]
[1763020149204,0.41971178,103530.0,103520.0,0.27710195]
[1763020149414,0.19788072,103530.0,103520.0,0.25710195]
[1763020149564,0.22653106,103530.0,103520.0,0.31297195]
[1763020150390,0.22653106,103530.0,103520.0,0.27710195]
[1763020151774,0.22653106,103530.0,103520.0,0.31297195]
[1763020152310,0.22653106,103530.0,103520.0,0.27710195]
[1763020152698,0.41971178,103530.0,103520.0,0.27710195]
[1763020153324,0.19788072,103530.0,103520.0,0.31297195]
[1763020153524,0.41971178,103530.0,103520.0,0.31297195]
[1763020154280,0.0047,103530.0,103520.0,0.31297195]
[1763020154544,0.22653106,103530.0,103520.0,0.31297195]
[1763020155195,0.00728,103550.0,103540.0,0.19316206]
[1763020155427,0.42225446,103550.0,103540.0,0.25459206]
[1763020155855,0.42225446,103550.0,103540.0,0.06143]
[1763020156057,0.64408552,103550.0,103540.0,0.03761]
[1763020156266,0.2213734,103550.0,103540.0,0.03761]
[1763020156463,0.66603552,103550.0,103540.0,0.03761]
[1763020156690,0.66703552,103550.0,103540.0,0.23077206]
[1763020156817,0.66703552,103550.0,103540.0,0.03761]
[1763020157042,0.19316206,103540.0,103530.0,0.23079072]
[1763020157243,0.66247418,103540.0,103530.0,0.03761]
[1763020157449,0.44064312,103540.0,103530.0,0.03761]
[1763020158245,0.66247418,103540.0,103530.0,0.03761]
[1763020158649,0.44064312,103540.0,103530.0,0.05761]
[1763020159268,0.68342418,103540.0,103530.0,0.02]
[1763020159848,0.68342418,103540.0,103530.0,0.23318072]
[1763020160435,0.68342418,103540.0,103530.0,0.02]
[1763020160638,0.68342418,103540.0,103530.0,0.04]
[1763020160890,0.66247418,103540.0,103530.0,0.04]
[1763020161080,0.66247418,103540.0,103530.0,0.21318072]
[1763020161252,0.66247418,103540.0,103530.0,0.02]
[1763020162686,0.66247418,103540.0,103530.0,0.04]
[1763020163097,0.66247418,103540.0,103530.0,0.23079072]
[1763020163323,0.19786206,103540.0,103530.0,0.27048072]
[1763020163505,0.41969312,103540.0,103530.0,0.31048072]
[1763020163706,0.22653106,103540.0,103530.0,0.31048072]
[1763020163913,0.42225446,103550.0,103540.0,0.19316206]
[1763020164258,0.64408552,103550.0,103540.0,0.27459206]
[1763020164462,0.66503552,103550.0,103540.0,0.23077206]
[1763020164611,0.66503552,103550.0,103540.0,0.25077206]
[1763020165015,0.42225446,103550.0,103540.0,0.29046206]
[1763020165226,0.41497446,103550.0,103540.0,0.31046206]
[1763020165406,0.41597446,103550.0,103540.0,0.31046206]
[1763020165609,0.41697446,103550.0,103540.0,0.31046206]
[1763020166612,0.002,103550.0,103540.0,0.31046206]
[1763020166860,0.1951434,103550.0,103540.0,0.31046206]
[1763020167404,0.41697446,103550.0,103540.0,0.0973]
[1763020167985,0.63880552,103550.0,103540.0,0.1173]
[1763020168346,0.63880552,103550.0,103540.0,0.0973]
[1763020168632,0.63880552,103550.0,103540.0,0.06143]
[1763020168832,0.65801552,103550.0,103540.0,0.02]
[1763020169447,0.65801552,103550.0,103540.0,0.04]
[1763020169650,0.65801552,103550.0,103540.0,0.03804]
[1763020169858,0.63880552,103550.0,103540.0,0.25323206]
[1763020170055,0.63880552,103550.0,103540.0,0.23323206]
[1763020170273,0.63880552,103550.0,103540.0,0.30630206]
[1763020170725,0.63880552,103550.0,103540.0,0.06007]
[1763020170948,0.63880552,103550.0,103540.0,0.08007]
[1763020171169,0.63880552,103550.0,103540.0,0.25323206]
[1763020171630,0.63880552,103550.0,103540.0,0.11314]
[1763020171841,0.63880552,103550.0,103540.0,0.28630206]
[1763020172346,0.63880552,103550.0,103540.0,0.30630206]
[1763020172820,0.63880552,103550.0,103540.0,0.11314]
[1763020173273,0.63880552,103550.0,103540.0,0.28630206]
[1763020173517,0.63880552,103550.0,103540.0,0.30630206]
[1763020173739,0.63880552,103550.0,103540.0,0.28630206]
[1763020174255,0.63880552,103550.0,103540.0,0.30630206]